[Event "Balkan Youth Online-ch 2020"]
[Site "Online"]
[Date "2020.10.31"]
[Round "2.7"]
[White "Palaiologou, Apostolos"]
[Black "Smirnov, Maksim"]
[Result "1-0"]
[ECO "B13"]
[WhiteElo "1410"]
[BlackElo "1139"]
[Annotator "NA RC"]
[PlyCount "93"]
[EventDate "2020.10.31"]
[EventType "swiss"]
[SourceTitle "playchess.com"]
[Source "ChessBase"]
[SourceQuality "1"]
[TimeControl "5400+30"]

1. e4 {[%emt 1:05:20]} c6 {[%emt 1:05:23]} 2. d4 {[%emt 0:00:28]} d5 {[%emt 0:00:26]} 3. exd5 {[%emt 0:00:32]} cxd5 {[%emt 0:00:33]} 4. c4 {[%emt 0:00:25]} Nf6 {[%emt 0:00:30]} 5. Nc3 {[%emt 0:00:51]} Nc6 {[%emt 0:00:40]} 6. Nf3 {[%emt 0:01:01]} Bg4 {[%emt 0:00:31]} 7. Be3 {[%emt 0:00:54]} e6 {[%emt 0:00:24]} 8. a3 {[%emt 0:01:10]} Be7 {[%emt 0:00:24]} 9. Be2 {[%emt 0:00:51]} O-O {[%emt 0:01:17]} 10. h3 {[%emt 0:00:48]} Bh5 {[%emt 0:00:25]} 11. Ne5 {[%emt 0:02:00]} Bxe2 {[%emt 0:00:49]} 12. Qxe2 {[%emt 0:01:06]} Nd7 {[%emt 0:00:59]} 13. cxd5 {[%emt 0:01:34]} exd5 {[%emt 0:00:31]} 14. Nd3 {[%emt 0:01:32]} Nf6 {[%emt 0:00:30]} 15. O-O {[%emt 0:01:00]} Re8 {[%emt 0:00:24]} 16. Qf3 {[%emt 0:01:11]} Bd6 {[%emt 0:00:31]} 17. Kh1 {[%emt 0:01:27]} Ne4 {[%emt 0:00:31]} 18. Nxd5 {[%emt 0:01:09]} Bb8 {[%emt 0:00:26]} 19. Nc3 {[%emt 0:00:58]} Nxd4 {[%emt 0:00:24]} 20. Bxd4 {[%emt 0:01:26]} Qxd4 {[%emt 0:00:26]} 21. Rfe1 {[%emt 0:00:59]} Nf6 {[%emt 0:00:38]} 22. Rxe8+ {[%emt 0:00:55]} Nxe8 {[%emt 0:00:23]} 23. Qxb7 {[%emt 0:01:08]} Qd6 {[%emt 0:00:24]} 24. g3 {[%emt 0:01:08]} Qxd3 {[%emt 0:00:44]} 25. Qxa8 {[%emt 0:00:40]} Qd6 {[%emt 0:00:26]} 26. Rd1 {[%emt 0:00:54]} Qc7 {[%emt 0:00:24]} 27. Qd5 {[%emt 0:00:53]} h6 {[%emt 0:01:21]} 28. Qd8 {[%emt 0:01:19]} Qc6+ {[%emt 0:00:33]} 29. Kg1 {[%emt 0:01:16]} Bd6 {[%emt 0:00:29]} 30. Rxd6 {[%emt 0:01:51]} Qxd6 {[%emt 0:00:36]} 31. Qxe8+ {[%emt 0:00:26]} Kh7 {[%emt 0:00:23]} 32. Qe4+ {[%emt 0:00:32]} Kg8 {[%emt 0:00:26]} 33. Qa8+ {[%emt 0:00:37]} Kh7 {[%emt 0:00:24]} 34. Qxa7 {[%emt 0:01:12]} Qd2 {[%emt 0:00:26]} 35. Qxf7 {[%emt 0:01:39]} Qxb2 {[%emt 0:00:28]} 36. Qf5+ {[%emt 0:01:07]} Kg8 {[%emt 0:00:25]} 37. Qc8+ {[%emt 0:00:55]} Kh7 {[%emt 0:00:23]} 38. a4 {[%emt 0:01:07]} Qc1+ {[%emt 0:00:32]} 39. Kg2 {[%emt 0:00:23]} Qg5 {[%emt 0:00:41]} 40. Qc4 {[%emt 0:00:45]} Qd8 {[%emt 0:00:59]} 41. Qe4+ {[%emt 0:00:52]} Kh8 {[%emt 0:00:35]} 42. Ne2 {[%emt 0:00:45]} Qb6 {[%emt 0:00:37]} 43. Nf4 {[%emt 0:00:41]} Qa6 {[%emt 0:00:36]} 44. Nd5 {[%emt 0:00:39]} Qd6 {[%emt 0:00:48]} 45. Ne7 {[%emt 0:00:30]} Qd7 {[%emt 0:00:37]} 46. Qa8+ {[%emt 0:00:26]} Kh7 {[%emt 0:00:28]} 47. Qg8# {[%emt 0:00:23]} 1-0

[Event "Balkan Youth Online-ch 2020"]
[Site "Online"]
[Date "2020.10.31"]
[Round "2.12"]
[White "Markosek, Bine"]
[Black "Mogirzan, Matei-Valeriu"]
[Result "0-1"]
[ECO "C54"]
[WhiteElo "1287"]
[BlackElo "1813"]
[Annotator "NA RC"]
[PlyCount "54"]
[EventDate "2020.10.31"]
[EventType "swiss"]
[SourceTitle "playchess.com"]
[Source "ChessBase"]
[SourceQuality "1"]
[TimeControl "5400+30"]

1. e4 {[%emt 1:05:20]} e5 {[%emt 1:05:30]} 2. Nf3 {[%emt 0:00:24]} Nc6 {[%emt 0:00:22]} 3. Bc4 {[%emt 0:00:31]} Nf6 {[%emt 0:00:27]} 4. d3 {[%emt 0:00:25]} Bc5 {[%emt 0:00:34]} 5. O-O {[%emt 0:00:26]} O-O {[%emt 0:00:25]} 6. c3 {[%emt 0:00:24]} d6 {[%emt 0:00:24]} 7. h3 {[%emt 0:00:25]} Be6 {[%emt 0:00:28]} 8. Bxe6 {[%emt 0:00:27]} fxe6 {[%emt 0:00:25]} 9. Be3 {[%emt 0:00:48]} Bxe3 {[%emt 0:00:32]} 10. fxe3 {[%emt 0:00:22]} d5 {[%emt 0:01:24]} 11. Nbd2 {[%emt 0:00:56]} h6 {[%emt 0:01:32]} 12. Qe2 {[%emt 0:01:32]} Qe7 {[%emt 0:01:20]} 13. exd5 {[%emt 0:01:03]} exd5 {[%emt 0:00:34]} 14. e4 {[%emt 0:00:42]} Nh5 {[%emt 0:00:40]} 15. Qe3 {[%emt 0:00:47]} Rad8 {[%emt 0:01:28]} 16. Rfe1 {[%emt 0:00:54]} d4 {[%emt 0:00:44]} 17. cxd4 {[%emt 0:00:29]} exd4 {[%emt 0:01:32]} 18. Qe2 {[%emt 0:00:32]} Nf4 {[%emt 0:00:31]} 19. Qd1 {[%emt 0:00:28]} Kh7 {[%emt 0:01:16]} 20. Nc4 {[%emt 0:01:15]} b5 {[%emt 0:00:59]} 21. Na3 {[%emt 0:00:42]} a6 {[%emt 0:00:46]} 22. Nc2 {[%emt 0:00:40]} Ne5 {[%emt 0:00:35]} 23. Nxe5 {[%emt 0:01:25]} Qxe5 {[%emt 0:00:23]} 24. Nb4 {[%emt 0:00:35]} Rd6 {[%emt 0:00:40]} 25. Qb3 {[%emt 0:01:42]} Nxh3+ {[%emt 0:00:29]} 26. Kh1 {[%emt 0:00:51]} Nf2+ {[%emt 0:00:22]} 27. Kg1 {[%emt 0:00:23]} Ng4 {[%emt 0:00:22]} 0-1

[Event "Balkan Youth Online-ch 2020"]
[Site "Online"]
[Date "2020.10.31"]
[Round "2.13"]
[White "Magold, Filip"]
[Black "Ramaj, Ergit"]
[Result "1-0"]
[ECO "B04"]
[WhiteElo "2043"]
[BlackElo "1444"]
[Annotator "RC"]
[PlyCount "115"]
[EventDate "2020.10.31"]
[EventType "swiss"]
[SourceTitle "playchess.com"]
[Source "ChessBase"]
[SourceQuality "1"]
[TimeControl "5400+30"]

1. e4 {[%emt 1:05:20]} Nf6 {[%emt 1:05:24]} 2. e5 {[%emt 0:00:22]} Nd5 {[%emt 0:00:22]} 3. c4 {[%emt 0:00:22]} Nb6 {[%emt 0:00:22]} 4. d4 {[%emt 0:00:21]} d6 {[%emt 0:00:21]} 5. exd6 {[%emt 0:00:23]} cxd6 {[%emt 0:00:21]} 6. h3 {[%emt 0:00:22]} g6 {[%emt 0:00:29]} 7. Nf3 {[%emt 0:00:22]} Bg7 {[%emt 0:00:22]} 8. Nc3 {[%emt 0:00:23]} O-O {[%emt 0:00:47]} 9. Be3 {[%emt 0:00:26]} e5 {[%emt 0:00:53]} 10. dxe5 {[%emt 0:00:26]} dxe5 {[%emt 0:00:25]} 11. Qxd8 {[%emt 0:00:23]} Rxd8 {[%emt 0:00:22]} 12. c5 {[%emt 0:00:21]} N6d7 {[%emt 0:01:45]} 13. Bc4 {[%emt 0:00:25]} h6 {[%emt 0:04:18]} 14. O-O {[%emt 0:00:38]} Nc6 {[%emt 0:03:52]} 15. Rad1 {[%emt 0:00:27]} Nf8 {[%emt 0:01:29]} 16. Rxd8 {[%emt 0:04:41]} Nxd8 {[%emt 0:00:24]} 17. Rd1 {[%emt 0:00:22]} Be6 {[%emt 0:00:30]} 18. Nd5 {[%emt 0:00:25]} Bxd5 {[%emt 0:02:45]} 19. Bxd5 {[%emt 0:00:27]} a5 {[%emt 0:02:21]} 20. Nd2 {[%emt 0:01:05]} Nfe6 {[%emt 0:01:10]} 21. Nc4 {[%emt 0:00:32]} Rc8 {[%emt 0:04:00]} 22. Nxa5 {[%emt 0:01:40]} Nxc5 {[%emt 0:00:48]} 23. Rc1 {[%emt 0:00:41]} b6 {[%emt 0:00:29]} 24. b4 {[%emt 0:00:22]} bxa5 {[%emt 0:01:02]} 25. Rxc5 {[%emt 0:00:23]} Rxc5 {[%emt 0:04:26]} 26. bxc5 {[%emt 0:00:23]} Bf8 {[%emt 0:00:40]} 27. c6 {[%emt 0:00:22]} Nxc6 {[%emt 0:00:28]} 28. Bxc6 {[%emt 0:00:22]} f5 {[%emt 0:00:32]} 29. Bd2 {[%emt 0:00:22]} Bb4 {[%emt 0:00:55]} 30. Bxh6 {[%emt 0:00:22]} Kf7 {[%emt 0:00:25]} 31. Be3 {[%emt 0:00:28]} f4 {[%emt 0:00:24]} 32. Bb6 {[%emt 0:00:23]} Ke6 {[%emt 0:00:21]} 33. Bc7 {[%emt 0:00:22]} g5 {[%emt 0:00:31]} 34. Kf1 {[%emt 0:00:23]} Kf5 {[%emt 0:00:26]} 35. Ke2 {[%emt 0:00:22]} e4 {[%emt 0:00:25]} 36. Bd7+ {[%emt 0:00:31]} Kf6 {[%emt 0:00:32]} 37. h4 {[%emt 0:00:22]} f3+ {[%emt 0:00:38]} 38. gxf3 {[%emt 0:00:23]} exf3+ {[%emt 0:00:21]} 39. Kxf3 {[%emt 0:00:21]} gxh4 {[%emt 0:00:21]} 40. Kg4 {[%emt 0:00:21]} Bc5 {[%emt 0:00:29]} 41. Bxa5 {[%emt 0:00:29]} Bxf2 {[%emt 0:00:23]} 42. Bd8+ {[%emt 0:00:21]} Ke5 {[%emt 0:00:32]} 43. Bxh4 {[%emt 0:00:21]} Kd6 {[%emt 0:00:57]} 44. Bf5 {[%emt 0:00:29]} Bb6 {[%emt 0:01:10]} 45. Kf4 {[%emt 0:00:23]} Kd5 {[%emt 0:00:30]} 46. Be4+ {[%emt 0:00:31]} Kc4 {[%emt 0:00:26]} 47. Be7 {[%emt 0:00:28]} Kb5 {[%emt 0:00:31]} 48. Ke5 {[%emt 0:00:24]} Ka6 {[%emt 0:00:32]} 49. Bc6 {[%emt 0:00:23]} Ka5 {[%emt 0:00:30]} 50. Kd5 {[%emt 0:00:24]} Ba7 {[%emt 0:00:31]} 51. a4 {[%emt 0:00:47]} Bg1 {[%emt 0:00:33]} 52. Bc5 {[%emt 0:00:32]} Bh2 {[%emt 0:00:31]} 53. Bb5 {[%emt 0:00:28]} Bb8 {[%emt 0:00:48]} 54. Kc6 {[%emt 0:00:26]} Bc7 {[%emt 0:00:23]} 55. Bb4+ {[%emt 0:00:25]} Kxb4 {[%emt 0:00:25]} 56. Kxc7 {[%emt 0:00:21]} Ka5 {[%emt 0:00:21]} 57. Kb7 {[%emt 0:00:21]} Kb4 {[%emt 0:00:23]} 58. Kb6 {[%emt 0:00:21]} 1-0

[Event "Balkan Youth Online-ch 2020"]
[Site "Online"]
[Date "2020.10.31"]
[Round "2.14"]
[White "Tsarsitalidis, Christos"]
[Black "Poupalos, Nikolaos"]
[Result "1-0"]
[ECO "B50"]
[WhiteElo "1786"]
[BlackElo "1887"]
[Annotator "NA RC"]
[PlyCount "75"]
[EventDate "2020.10.31"]
[EventType "swiss"]
[SourceTitle "playchess.com"]
[Source "ChessBase"]
[SourceQuality "1"]
[TimeControl "5400+30"]

1. e4 {[%emt 1:05:20]} c5 {[%emt 1:05:24]} 2. Nf3 {[%emt 0:00:22]} d6 {[%emt 0:00:23]} 3. c3 {[%emt 0:00:22]} Nc6 {[%emt 0:05:02]} 4. Be2 {[%emt 0:00:39]} Nf6 {[%emt 0:00:35]} 5. d4 {[%emt 0:00:25]} cxd4 {[%emt 0:05:57]} 6. cxd4 {[%emt 0:00:23]} e6 {[%emt 0:00:44]} 7. Nc3 {[%emt 0:00:27]} Be7 {[%emt 0:00:23]} 8. O-O {[%emt 0:00:23]} O-O {[%emt 0:00:27]} 9. h3 {[%emt 0:00:23]} d5 {[%emt 0:01:00]} 10. e5 {[%emt 0:00:47]} Ne4 {[%emt 0:00:25]} 11. Bd3 {[%emt 0:00:59]} Nxc3 {[%emt 0:01:25]} 12. bxc3 {[%emt 0:00:23]} Qc7 {[%emt 0:01:18]} 13. Nh2 {[%emt 0:00:52]} Re8 {[%emt 0:02:02]} 14. f4 {[%emt 0:01:26]} Na5 {[%emt 0:01:00]} 15. Qf3 {[%emt 0:04:46]} Bd7 {[%emt 0:02:28]} 16. g4 {[%emt 0:00:52]} Rac8 {[%emt 0:01:17]} 17. Bd2 {[%emt 0:02:03]} Nc4 {[%emt 0:00:37]} 18. Be1 {[%emt 0:00:24]} Nb2 {[%emt 0:01:12]} 19. Bc2 {[%emt 0:00:25]} Bb5 {[%emt 0:00:46]} 20. Rf2 {[%emt 0:00:24]} Bh4 {[%emt 0:02:10]} 21. Bxh7+ {[%emt 0:01:29]} Kxh7 {[%emt 0:00:23]} 22. Rxb2 {[%emt 0:00:22]} Bxe1 {[%emt 0:00:21]} 23. Rxe1 {[%emt 0:00:23]} a6 {[%emt 0:00:36]} 24. Rc2 {[%emt 0:00:53]} Qc4 {[%emt 0:01:08]} 25. Re3 {[%emt 0:01:57]} Qa4 {[%emt 0:01:15]} 26. Rf2 {[%emt 0:00:33]} Rc7 {[%emt 0:01:29]} 27. f5 {[%emt 0:00:55]} Rec8 {[%emt 0:00:42]} 28. g5 {[%emt 0:07:22]} exf5 {[%emt 0:02:34]} 29. Qxf5+ {[%emt 0:00:27]} g6 {[%emt 0:00:30]} 30. Qf4 {[%emt 0:01:04]} Qd1+ {[%emt 0:00:59]} 31. Kg2 {[%emt 0:00:23]} Be8 {[%emt 0:00:32]} 32. Ng4 {[%emt 0:00:43]} Rxc3 {[%emt 0:00:45]} 33. Rxc3 {[%emt 0:00:52]} Rxc3 {[%emt 0:00:26]} 34. Nf6+ {[%emt 0:00:21]} Kh8 {[%emt 0:00:22]} 35. Qh4+ {[%emt 0:00:27]} Kg7 {[%emt 0:00:30]} 36. Qh7+ {[%emt 0:00:23]} Kf8 {[%emt 0:00:22]} 37. Qg8+ {[%emt 0:00:23]} Ke7 {[%emt 0:00:22]} 38. Qxe8# {[%emt 0:00:22]} 1-0

[Event "Balkan Youth Online-ch 2020"]
[Site "Online"]
[Date "2020.10.31"]
[Round "2.19"]
[White "Boeru, Dragos-Matei"]
[Black "Kalin, Andrei"]
[Result "1-0"]
[ECO "B23"]
[WhiteElo "1756"]
[BlackElo "1426"]
[Annotator "NA RC"]
[PlyCount "185"]
[EventDate "2020.10.31"]
[EventType "swiss"]
[SourceTitle "playchess.com"]
[Source "ChessBase"]
[SourceQuality "1"]
[TimeControl "5400+30"]

1. e4 {[%emt 1:05:20]} c5 {[%emt 1:05:23]} 2. Nc3 {[%emt 0:00:24]} d6 {[%emt 0:00:25]} 3. f4 {[%emt 0:00:22]} Nc6 {[%emt 0:00:30]} 4. Nf3 {[%emt 0:00:24]} Nf6 {[%emt 0:00:23]} 5. g3 {[%emt 0:00:25]} Bd7 {[%emt 0:00:28]} 6. Bg2 {[%emt 0:00:23]} a6 {[%emt 0:00:46]} 7. d3 {[%emt 0:00:26]} Qc7 {[%emt 0:00:31]} 8. O-O {[%emt 0:00:24]} e6 {[%emt 0:00:22]} 9. Be3 {[%emt 0:00:28]} Be7 {[%emt 0:00:57]} 10. Bf2 {[%emt 0:00:25]} O-O-O {[%emt 0:01:36]} 11. Ng5 {[%emt 0:00:28]} Rhf8 {[%emt 0:00:48]} 12. Re1 {[%emt 0:00:31]} h6 {[%emt 0:00:31]} 13. Nf3 {[%emt 0:00:25]} e5 {[%emt 0:02:17]} 14. f5 {[%emt 0:02:21]} g6 {[%emt 0:02:22]} 15. fxg6 {[%emt 0:00:51]} fxg6 {[%emt 0:00:38]} 16. Qd2 {[%emt 0:00:56]} g5 {[%emt 0:02:37]} 17. Be3 {[%emt 0:00:52]} Be6 {[%emt 0:01:22]} 18. a3 {[%emt 0:01:04]} Nd4 {[%emt 0:01:28]} 19. Bxd4 {[%emt 0:00:46]} cxd4 {[%emt 0:00:39]} 20. Nd1 {[%emt 0:00:40]} Kb8 {[%emt 0:01:47]} 21. Rc1 {[%emt 0:01:14]} Rc8 {[%emt 0:00:28]} 22. Kh1 {[%emt 0:01:34]} Qd7 {[%emt 0:00:41]} 23. Nf2 {[%emt 0:01:31]} Nh5 {[%emt 0:02:21]} 24. Qe2 {[%emt 0:03:25]} Nf6 {[%emt 0:01:14]} 25. c3 {[%emt 0:00:51]} dxc3 {[%emt 0:00:45]} 26. Rxc3 {[%emt 0:00:23]} Bd8 {[%emt 0:01:36]} 27. Rec1 {[%emt 0:01:44]} Bb6 {[%emt 0:00:27]} 28. Nd1 {[%emt 0:01:05]} Ng4 {[%emt 0:03:04]} 29. h3 {[%emt 0:02:01]} Nf6 {[%emt 0:03:05]} 30. g4 {[%emt 0:00:28]} Ng8 {[%emt 0:01:31]} 31. Ne3 {[%emt 0:01:26]} Bxe3 {[%emt 0:01:04]} 32. Qxe3 {[%emt 0:00:38]} Ne7 {[%emt 0:01:18]} 33. Nd2 {[%emt 0:02:13]} Ng6 {[%emt 0:01:37]} 34. Nc4 {[%emt 0:00:57]} Nf4 {[%emt 0:00:46]} 35. Nb6 {[%emt 0:00:38]} Qb5 {[%emt 0:00:43]} 36. Nxc8 {[%emt 0:00:46]} Rxc8 {[%emt 0:00:23]} 37. b4 {[%emt 0:02:10]} Qa4 {[%emt 0:01:20]} 38. Qd2 {[%emt 0:01:16]} Rxc3 {[%emt 0:00:26]} 39. Rxc3 {[%emt 0:00:44]} Qd7 {[%emt 0:00:38]} 40. Qe1 {[%emt 0:01:07]} Qe7 {[%emt 0:00:29]} 41. Bf1 {[%emt 0:00:35]} Bd7 {[%emt 0:00:27]} 42. Bg2 {[%emt 0:01:01]} Bb5 {[%emt 0:00:25]} 43. Bf1 {[%emt 0:00:28]} Be8 {[%emt 0:00:36]} 44. Qc1 {[%emt 0:00:32]} Qf7 {[%emt 0:00:28]} 45. Rc8+ {[%emt 0:00:37]} Ka7 {[%emt 0:00:27]} 46. Qc4 {[%emt 0:00:44]} Qxc4 {[%emt 0:00:41]} 47. dxc4 {[%emt 0:00:46]} Ba4 {[%emt 0:00:25]} 48. Rd8 {[%emt 0:00:33]} Bc2 {[%emt 0:00:24]} 49. Rxd6 {[%emt 0:00:26]} Bxe4+ {[%emt 0:00:24]} 50. Kh2 {[%emt 0:00:22]} h5 {[%emt 0:00:26]} 51. gxh5 {[%emt 0:00:32]} Nxh5 {[%emt 0:00:22]} 52. Bd3 {[%emt 0:00:27]} Bf3 {[%emt 0:00:52]} 53. Bc2 {[%emt 0:00:40]} g4 {[%emt 0:00:36]} 54. hxg4 {[%emt 0:00:30]} Bxg4 {[%emt 0:00:22]} 55. Rd5 {[%emt 0:00:22]} Nf4 {[%emt 0:00:33]} 56. Rxe5 {[%emt 0:00:27]} Be2 {[%emt 0:00:26]} 57. Kg3 {[%emt 0:00:34]} Nh5+ {[%emt 0:00:27]} 58. Kf2 {[%emt 0:00:33]} Bg4 {[%emt 0:00:27]} 59. Rg5 {[%emt 0:00:42]} Nf6 {[%emt 0:00:34]} 60. Ke3 {[%emt 0:00:33]} Bc8 {[%emt 0:00:33]} 61. c5 {[%emt 0:00:24]} Nd7 {[%emt 0:00:30]} 62. Bf5 {[%emt 0:00:24]} Kb8 {[%emt 0:00:24]} 63. Rg8 {[%emt 0:00:34]} Kc7 {[%emt 0:00:23]} 64. Bxd7 {[%emt 0:00:30]} Bxd7 {[%emt 0:00:24]} 65. Rg7 {[%emt 0:00:22]} Kc6 {[%emt 0:00:34]} 66. Kd4 {[%emt 0:00:24]} Be6 {[%emt 0:00:53]} 67. Rg6 {[%emt 0:00:26]} Kd7 {[%emt 0:00:22]} 68. Ke5 {[%emt 0:00:27]} Bc4 {[%emt 0:00:29]} 69. Rd6+ {[%emt 0:00:36]} Kc7 {[%emt 0:00:24]} 70. Kf6 {[%emt 0:00:24]} Bb5 {[%emt 0:00:26]} 71. Ke7 {[%emt 0:00:23]} Ba4 {[%emt 0:00:27]} 72. Rf6 {[%emt 0:00:38]} Bb5 {[%emt 0:00:31]} 73. Rb6 {[%emt 0:00:27]} Ba4 {[%emt 0:00:43]} 74. Ke6 {[%emt 0:00:25]} Be8 {[%emt 0:00:28]} 75. Kd5 {[%emt 0:00:28]} Ba4 {[%emt 0:00:25]} 76. Kc4 {[%emt 0:00:23]} Kb8 {[%emt 0:00:44]} 77. Rg6 {[%emt 0:00:39]} Bb5+ {[%emt 0:00:24]} 78. Kb3 {[%emt 0:00:24]} Bc6 {[%emt 0:00:30]} 79. Rg7 {[%emt 0:00:25]} Ka7 {[%emt 0:00:35]} 80. a4 {[%emt 0:00:26]} Kb8 {[%emt 0:00:26]} 81. Rg1 {[%emt 0:00:25]} Bd5+ {[%emt 0:00:22]} 82. Kc3 {[%emt 0:00:23]} Bc6 {[%emt 0:00:22]} 83. Ra1 {[%emt 0:00:22]} Ka7 {[%emt 0:00:46]} 84. Kc4 {[%emt 0:00:23]} Kb8 {[%emt 0:00:30]} 85. b5 {[%emt 0:00:23]} axb5+ {[%emt 0:00:23]} 86. axb5 {[%emt 0:00:22]} Bd7 {[%emt 0:00:23]} 87. b6 {[%emt 0:00:22]} Bc6 {[%emt 0:00:46]} 88. Rd1 {[%emt 0:00:24]} Kc8 {[%emt 0:00:22]} 89. Rd6 {[%emt 0:00:31]} Be8 {[%emt 0:00:33]} 90. Kd4 {[%emt 0:00:22]} Bf7 {[%emt 0:00:36]} 91. Ke5 {[%emt 0:00:23]} Bg8 {[%emt 0:00:33]} 92. Kf6 {[%emt 0:00:23]} Bc4 {[%emt 0:00:26]} 93. Ke7 {[%emt 0:00:23]} 1-0

[Event "Balkan Youth Online-ch 2020"]
[Site "Online"]
[Date "2020.10.31"]
[Round "2.20"]
[White "Ivanov, Svetlen"]
[Black "Markov, Daniel"]
[Result "1-0"]
[ECO "B84"]
[WhiteElo "1781"]
[BlackElo "1386"]
[Annotator "NA RC"]
[PlyCount "153"]
[EventDate "2020.10.31"]
[EventType "swiss"]
[SourceTitle "playchess.com"]
[Source "ChessBase"]
[SourceQuality "1"]
[TimeControl "5400+30"]

1. e4 {[%emt 1:05:20]} c5 {[%emt 1:05:23]} 2. Nf3 {[%emt 0:00:22]} d6 {[%emt 0:00:22]} 3. d4 {[%emt 0:00:22]} cxd4 {[%emt 0:00:22]} 4. Nxd4 {[%emt 0:00:22]} Nf6 {[%emt 0:00:22]} 5. Nc3 {[%emt 0:00:22]} e6 {[%emt 0:00:24]} 6. Be2 {[%emt 0:00:38]} a6 {[%emt 0:00:23]} 7. O-O {[%emt 0:00:24]} b5 {[%emt 0:00:23]} 8. a3 {[%emt 0:00:30]} Bb7 {[%emt 0:00:27]} 9. f3 {[%emt 0:00:23]} Nbd7 {[%emt 0:00:25]} 10. Be3 {[%emt 0:01:23]} Nb6 {[%emt 0:00:26]} 11. Nb3 {[%emt 0:01:21]} Rc8 {[%emt 0:01:13]} 12. Na5 {[%emt 0:01:49]} Qc7 {[%emt 0:02:07]} 13. Qd4 {[%emt 0:04:47]} Nfd7 {[%emt 0:01:56]} 14. f4 {[%emt 0:03:29]} d5 {[%emt 0:02:19]} 15. Nxb7 {[%emt 0:01:20]} Qxb7 {[%emt 0:00:28]} 16. exd5 {[%emt 0:00:35]} Bc5 {[%emt 0:00:44]} 17. Qd2 {[%emt 0:00:48]} Bxe3+ {[%emt 0:00:50]} 18. Qxe3 {[%emt 0:00:23]} Nxd5 {[%emt 0:00:37]} 19. Nxd5 {[%emt 0:02:20]} Qxd5 {[%emt 0:00:55]} 20. Rad1 {[%emt 0:00:29]} Qb7 {[%emt 0:00:45]} 21. Bf3 {[%emt 0:01:39]} Qb6 {[%emt 0:02:37]} 22. Qxb6 {[%emt 0:01:28]} Nxb6 {[%emt 0:00:27]} 23. Rf2 {[%emt 0:00:55]} Rc7 {[%emt 0:01:53]} 24. Rd6 {[%emt 0:01:02]} Nc4 {[%emt 0:00:47]} 25. Rxa6 {[%emt 0:00:25]} Ke7 {[%emt 0:01:58]} 26. b3 {[%emt 0:00:52]} Ne3 {[%emt 0:00:26]} 27. Rc6 {[%emt 0:01:35]} Rhc8 {[%emt 0:00:55]} 28. Rxc7+ {[%emt 0:00:39]} Rxc7 {[%emt 0:00:23]} 29. Be4 {[%emt 0:00:31]} Ra7 {[%emt 0:00:46]} 30. Re2 {[%emt 0:00:26]} Nd1 {[%emt 0:00:48]} 31. Rd2 {[%emt 0:01:27]} Nc3 {[%emt 0:00:38]} 32. Bc6 {[%emt 0:00:23]} Rxa3 {[%emt 0:01:45]} 33. Rd3 {[%emt 0:00:52]} Ra1+ {[%emt 0:03:43]} 34. Kf2 {[%emt 0:00:26]} b4 {[%emt 0:00:34]} 35. Rd4 {[%emt 0:01:08]} Na2 {[%emt 0:00:31]} 36. Be4 {[%emt 0:00:39]} f5 {[%emt 0:02:35]} 37. Bd3 {[%emt 0:00:29]} Rd1 {[%emt 0:01:06]} 38. Rc4 {[%emt 0:00:51]} Nc1 {[%emt 0:02:01]} 39. Bf1 {[%emt 0:01:12]} Na2 {[%emt 0:00:33]} 40. Be2 {[%emt 0:00:48]} Rd2 {[%emt 0:00:40]} 41. Ke3 {[%emt 0:00:33]} Rd7 {[%emt 0:01:08]} 42. Rc6 {[%emt 0:01:05]} Nc3 {[%emt 0:01:39]} 43. Rc4 {[%emt 0:01:28]} Na2 {[%emt 0:00:27]} 44. Rd4 {[%emt 0:00:27]} Rxd4 {[%emt 0:00:44]} 45. Kxd4 {[%emt 0:00:25]} Kf6 {[%emt 0:00:22]} 46. h4 {[%emt 0:00:30]} h6 {[%emt 0:00:30]} 47. h5 {[%emt 0:00:24]} g6 {[%emt 0:01:30]} 48. hxg6 {[%emt 0:00:39]} Kxg6 {[%emt 0:00:22]} 49. Ke5 {[%emt 0:00:25]} Kf7 {[%emt 0:00:34]} 50. Bc4 {[%emt 0:00:26]} Nc3 {[%emt 0:00:47]} 51. Bxe6+ {[%emt 0:00:24]} Ke7 {[%emt 0:00:24]} 52. Bxf5 {[%emt 0:00:23]} Ne2 {[%emt 0:00:24]} 53. g4 {[%emt 0:00:34]} Ng1 {[%emt 0:00:37]} 54. Be4 {[%emt 0:00:27]} Nh3 {[%emt 0:00:44]} 55. f5 {[%emt 0:01:15]} Ng5 {[%emt 0:00:30]} 56. Bd5 {[%emt 0:00:24]} Nh7 {[%emt 0:00:31]} 57. Bf3 {[%emt 0:00:36]} Nf6 {[%emt 0:00:26]} 58. Kd4 {[%emt 0:00:25]} Kd6 {[%emt 0:00:33]} 59. Kc4 {[%emt 0:00:26]} Kc7 {[%emt 0:00:22]} 60. Kxb4 {[%emt 0:00:22]} Kb6 {[%emt 0:00:22]} 61. Kc4 {[%emt 0:00:23]} Kc7 {[%emt 0:00:31]} 62. b4 {[%emt 0:00:25]} Kb6 {[%emt 0:00:22]} 63. b5 {[%emt 0:00:34]} Nd7 {[%emt 0:00:23]} 64. Kb4 {[%emt 0:00:35]} Ne5 {[%emt 0:00:27]} 65. Be2 {[%emt 0:00:23]} Nd7 {[%emt 0:00:29]} 66. c4 {[%emt 0:00:28]} Nf6 {[%emt 0:00:52]} 67. c5+ {[%emt 0:00:25]} Kc7 {[%emt 0:00:22]} 68. Bf3 {[%emt 0:00:22]} Nd7 {[%emt 0:00:25]} 69. b6+ {[%emt 0:00:26]} Kb8 {[%emt 0:00:24]} 70. Kb5 {[%emt 0:00:24]} Nf6 {[%emt 0:00:25]} 71. c6 {[%emt 0:00:23]} Ne8 {[%emt 0:00:32]} 72. Kc5 {[%emt 0:00:31]} Kc8 {[%emt 0:00:25]} 73. Be2 {[%emt 0:00:25]} Kb8 {[%emt 0:00:25]} 74. c7+ {[%emt 0:00:35]} Kc8 {[%emt 0:00:27]} 75. Kc6 {[%emt 0:00:28]} Nxc7 {[%emt 0:00:27]} 76. bxc7 {[%emt 0:00:21]} h5 {[%emt 0:00:22]} 77. Ba6# {[%emt 0:00:22]} 1-0